[Event "Titled Tuesday Blitz August 08 Early 2023"]
[White "Belov, Alexei"]
[Black "Hoffmann, Asa"]
[WhiteFideId "4128206"]
[BlackFideId "2001470"]
[WhiteElo "2556"]
[BlackElo "2352"]
[Result "0-1"]
[Round "3"]
[TimeControl "180+1"]
[Date "2023.08.08"]
[WhiteClock "0:01:10"]
[BlackClock "0:01:23"]
[Board "168"]

1. e4 {[%clk 0:02:59]}  d6 {[%clk 0:02:59]} 2. d4 {[%clk 0:02:59]}  Nf6 {[%clk 0:02:58]} 3. Nc3 {[%clk 0:02:59]}  c6 {[%clk 0:02:58]} 4. f4 {[%clk 0:02:59]}  Qa5 {[%clk 0:02:57]} 5. Bd3 {[%clk 0:02:57]}  e5 {[%clk 0:02:57]} 6. Nf3 {[%clk 0:02:56]}  exd4 {[%clk 0:02:56]} 7. Nxd4 {[%clk 0:02:55]}  Qb6 {[%clk 0:02:56]} 8. Nb3 {[%clk 0:02:41]}  a5 {[%clk 0:02:55]} 9. a4 {[%clk 0:02:40]}  Na6 {[%clk 0:02:54]} 10. Qe2 {[%clk 0:02:36]}  Bg4 {[%clk 0:02:49]} 11. Qf2 {[%clk 0:02:30]}  Qxf2+ {[%clk 0:02:48]} 12. Kxf2 {[%clk 0:02:30]}  Be6 {[%clk 0:02:45]} 13. Nd4 {[%clk 0:02:28]}  Nc5 {[%clk 0:02:42]} 14. Nxe6 {[%clk 0:02:25]}  Nxd3+ {[%clk 0:02:40]} 15. cxd3 {[%clk 0:02:24]}  fxe6 {[%clk 0:02:40]} 16. h3 {[%clk 0:02:19]}  d5 {[%clk 0:02:40]} 17. Be3 {[%clk 0:02:19]}  Bb4 {[%clk 0:02:38]} 18. Kf3 {[%clk 0:02:15]}  O-O {[%clk 0:02:34]} 19. g4 {[%clk 0:02:08]}  Rad8 {[%clk 0:02:30]} 20. Rad1 {[%clk 0:02:07]}  d4 {[%clk 0:02:28]} 21. Na2 {[%clk 0:01:47]}  dxe3 {[%clk 0:02:27]} 22. Nxb4 {[%clk 0:01:48]}  axb4 {[%clk 0:02:19]} 23. Kxe3 {[%clk 0:01:48]}  b3 {[%clk 0:02:14]} 24. Ra1 {[%clk 0:01:47]}  Ra8 {[%clk 0:02:09]} 25. Ra3 {[%clk 0:01:47]}  Nd7 {[%clk 0:02:05]} 26. a5 {[%clk 0:01:40]}  Rfd8 {[%clk 0:01:49]} 27. d4 {[%clk 0:01:36]}  c5 {[%clk 0:01:48]} 28. Rd1 {[%clk 0:01:33]}  c4 {[%clk 0:01:46]} 29. d5 {[%clk 0:01:23]}  exd5 {[%clk 0:01:44]} 30. Rxd5 {[%clk 0:01:23]}  Nf6 {[%clk 0:01:41]} 31. Rxd8+ {[%clk 0:01:21]}  Rxd8 {[%clk 0:01:41]} 32. Ra4 {[%clk 0:01:20]}  Rc8 {[%clk 0:01:31]} 33. Rb4 {[%clk 0:01:19]}  Rc7 {[%clk 0:01:24]} 34. e5 {[%clk 0:01:10]}  Nd5+ {[%clk 0:01:23]} 0-1


[Site "https://www.chess.com"]

[Event "Titled Tuesday Blitz August 08 Early 2023"]
[White "Silva, Kaua Marques"]
[Black "Girsh, Daniel"]
[WhiteFideId "22701168"]
[BlackFideId "30949190"]
[WhiteElo "2359"]
[BlackElo "2555"]
[Result "1-0"]
[Round "3"]
[TimeControl "180+1"]
[Date "2023.08.08"]
[WhiteClock "0:01:54"]
[BlackClock "0:00:46"]
[Board "169"]

1. e4 {[%clk 0:03:00]}  e5 {[%clk 0:03:00]} 2. Nf3 {[%clk 0:03:00]}  Nc6 {[%clk 0:02:59]} 3. Bb5 {[%clk 0:02:59]}  a6 {[%clk 0:02:57]} 4. Ba4 {[%clk 0:02:59]}  Nf6 {[%clk 0:02:57]} 5. O-O {[%clk 0:02:58]}  Be7 {[%clk 0:02:56]} 6. Re1 {[%clk 0:02:58]}  b5 {[%clk 0:02:55]} 7. Bb3 {[%clk 0:02:59]}  O-O {[%clk 0:02:56]} 8. h3 {[%clk 0:02:58]}  Bb7 {[%clk 0:02:52]} 9. c3 {[%clk 0:02:58]}  d5 {[%clk 0:02:48]} 10. exd5 {[%clk 0:02:57]}  Nxd5 {[%clk 0:02:49]} 11. Nxe5 {[%clk 0:02:56]}  Nxe5 {[%clk 0:02:49]} 12. Rxe5 {[%clk 0:02:57]}  Nf4 {[%clk 0:02:43]} 13. d4 {[%clk 0:02:49]}  Bd6 {[%clk 0:02:39]} 14. Bxf4 {[%clk 0:02:48]}  Bxe5 {[%clk 0:02:38]} 15. Bxe5 {[%clk 0:02:49]}  c5 {[%clk 0:02:30]} 16. Nd2 {[%clk 0:02:48]}  cxd4 {[%clk 0:02:30]} 17. Bxd4 {[%clk 0:02:48]}  Kh8 {[%clk 0:02:19]} 18. Qh5 {[%clk 0:02:46]}  Qd7 {[%clk 0:01:56]} 19. Nf3 {[%clk 0:02:36]}  Bxf3 {[%clk 0:01:49]} 20. Qxf3 {[%clk 0:02:37]}  Rae8 {[%clk 0:01:48]} 21. Bc2 {[%clk 0:02:32]}  f5 {[%clk 0:01:47]} 22. a4 {[%clk 0:02:31]}  b4 {[%clk 0:01:42]} 23. a5 {[%clk 0:02:30]}  bxc3 {[%clk 0:01:41]} 24. Bxc3 {[%clk 0:02:31]}  Rb8 {[%clk 0:01:31]} 25. Rd1 {[%clk 0:02:30]}  Qe6 {[%clk 0:01:30]} 26. Re1 {[%clk 0:02:28]}  Qd7 {[%clk 0:01:25]} 27. Bd3 {[%clk 0:02:17]}  Ra8 {[%clk 0:01:21]} 28. Re5 {[%clk 0:02:14]}  f4 {[%clk 0:01:19]} 29. Qe4 {[%clk 0:02:06]}  Kg8 {[%clk 0:00:52]} 30. Qxh7+ {[%clk 0:02:03]}  Kf7 {[%clk 0:00:52]} 31. Bg6+ {[%clk 0:02:02]}  Kf6 {[%clk 0:00:50]} 32. Re4+ {[%clk 0:01:55]}  Kg5 {[%clk 0:00:46]} 33. Qh5# {[%clk 0:01:54]} 1-0


[Site "https://www.chess.com"]

[Event "Titled Tuesday Blitz August 08 Early 2023"]
[White "MarijaKuznecova"]
[Black "SmirnovAlexandrA"]
[WhiteElo "2350"]
[BlackElo "2554"]
[Result "0-1"]
[Round "3"]
[TimeControl "180+1"]
[Date "2023.08.08"]
[WhiteClock "0:00:03"]
[BlackClock "0:00:43"]
[Board "170"]

1. e4 {[%clk 0:03:00]}  d5 {[%clk 0:02:55]} 2. exd5 {[%clk 0:03:00]}  Qxd5 {[%clk 0:02:56]} 3. Nc3 {[%clk 0:03:00]}  Qd6 {[%clk 0:02:56]} 4. d4 {[%clk 0:03:00]}  Nf6 {[%clk 0:02:55]} 5. Nf3 {[%clk 0:03:01]}  a6 {[%clk 0:02:55]} 6. Ne5 {[%clk 0:02:53]}  Nc6 {[%clk 0:02:53]} 7. Nxc6 {[%clk 0:02:45]}  Qxc6 {[%clk 0:02:54]} 8. d5 {[%clk 0:02:44]}  Qd6 {[%clk 0:02:52]} 9. Be2 {[%clk 0:02:41]}  Bf5 {[%clk 0:02:52]} 10. Bf3 {[%clk 0:02:30]}  O-O-O {[%clk 0:02:51]} 11. O-O {[%clk 0:02:29]}  g5 {[%clk 0:02:44]} 12. Bxg5 {[%clk 0:02:28]}  Rg8 {[%clk 0:02:44]} 13. Be3 {[%clk 0:02:27]}  Ng4 {[%clk 0:02:40]} 14. Bxg4 {[%clk 0:02:22]}  Bxg4 {[%clk 0:02:41]} 15. Qd4 {[%clk 0:02:22]}  Bh3 {[%clk 0:02:32]} 16. g3 {[%clk 0:02:17]}  e5 {[%clk 0:02:16]} 17. Qh4 {[%clk 0:01:54]}  Bxf1 {[%clk 0:02:12]} 18. Rxf1 {[%clk 0:01:55]}  f5 {[%clk 0:02:07]} 19. Bg5 {[%clk 0:01:50]}  Re8 {[%clk 0:02:05]} 20. Bd2 {[%clk 0:01:39]}  f4 {[%clk 0:01:58]} 21. Qxh7 {[%clk 0:01:35]}  Be7 {[%clk 0:01:58]} 22. Qh3+ {[%clk 0:01:20]}  Kb8 {[%clk 0:01:55]} 23. Kh1 {[%clk 0:01:19]}  Rh8 {[%clk 0:01:45]} 24. Qg2 {[%clk 0:01:18]}  Reg8 {[%clk 0:01:45]} 25. Kg1 {[%clk 0:01:04]}  Bh4 {[%clk 0:01:39]} 26. Ne2 {[%clk 0:00:51]}  Qf6 {[%clk 0:01:36]} 27. f3 {[%clk 0:00:49]}  fxg3 {[%clk 0:01:32]} 28. hxg3 {[%clk 0:00:44]}  Bg5 {[%clk 0:01:31]} 29. Bxg5 {[%clk 0:00:31]}  Rxg5 {[%clk 0:01:31]} 30. g4 {[%clk 0:00:26]}  e4 {[%clk 0:01:14]} 31. f4 {[%clk 0:00:23]}  Qb6+ {[%clk 0:01:14]} 32. Rf2 {[%clk 0:00:22]}  Rxd5 {[%clk 0:01:12]} 33. Qxe4 {[%clk 0:00:20]}  Rd1+ {[%clk 0:00:58]} 34. Kg2 {[%clk 0:00:20]}  Qh6 {[%clk 0:00:59]} 35. Kf3 {[%clk 0:00:17]}  Qh3+ {[%clk 0:00:58]} 36. Ng3 {[%clk 0:00:16]}  Rhd8 {[%clk 0:00:47]} 37. Qe3 {[%clk 0:00:13]}  Rg1 {[%clk 0:00:44]} 38. Qe7 {[%clk 0:00:06]}  Qxg3+ {[%clk 0:00:43]} 39. Ke4 {[%clk 0:00:03]}  Re1+ {[%clk 0:00:43]} 0-1


[Site "https://www.chess.com"]

[Event "Titled Tuesday Blitz August 08 Early 2023"]
[White "Carre, Sylvain"]
[Black "Santos Flores, Alberto"]
[WhiteFideId "642118"]
[BlackFideId "3601234"]
[WhiteElo "2350"]
[BlackElo "2554"]
[Result "0-1"]
[Round "3"]
[TimeControl "180+1"]
[Date "2023.08.08"]
[WhiteClock "0:00:21"]
[BlackClock "0:00:41"]
[Board "171"]

1. d4 {[%clk 0:03:00]}  d5 {[%clk 0:02:59]} 2. Bf4 {[%clk 0:03:00]}  Nf6 {[%clk 0:02:59]} 3. e3 {[%clk 0:03:01]}  c5 {[%clk 0:02:57]} 4. c3 {[%clk 0:03:00]}  Nc6 {[%clk 0:02:57]} 5. Nd2 {[%clk 0:03:01]}  Qb6 {[%clk 0:02:57]} 6. Qb3 {[%clk 0:03:00]}  c4 {[%clk 0:02:57]} 7. Qc2 {[%clk 0:02:58]}  Bg4 {[%clk 0:02:56]} 8. e4 {[%clk 0:02:37]}  e6 {[%clk 0:02:50]} 9. e5 {[%clk 0:02:30]}  Nd7 {[%clk 0:02:50]} 10. Ngf3 {[%clk 0:02:25]}  Bf5 {[%clk 0:02:48]} 11. Qc1 {[%clk 0:02:26]}  h6 {[%clk 0:02:48]} 12. Be2 {[%clk 0:02:22]}  Qd8 {[%clk 0:02:47]} 13. Bd1 {[%clk 0:02:22]}  Be7 {[%clk 0:02:46]} 14. Bc2 {[%clk 0:02:22]}  Bxc2 {[%clk 0:02:45]} 15. Qxc2 {[%clk 0:02:23]}  b5 {[%clk 0:02:44]} 16. a3 {[%clk 0:02:23]}  O-O {[%clk 0:02:43]} 17. O-O {[%clk 0:01:30]}  a5 {[%clk 0:02:41]} 18. h4 {[%clk 0:01:23]}  Bxh4 {[%clk 0:02:35]} 19. Nxh4 {[%clk 0:01:23]}  Qxh4 {[%clk 0:02:36]} 20. Bg3 {[%clk 0:01:23]}  Qe7 {[%clk 0:02:36]} 21. Nf3 {[%clk 0:01:19]}  b4 {[%clk 0:02:34]} 22. axb4 {[%clk 0:01:20]}  axb4 {[%clk 0:02:34]} 23. Bh4 {[%clk 0:01:20]}  Qe8 {[%clk 0:02:28]} 24. Nh2 {[%clk 0:01:08]}  b3 {[%clk 0:02:20]} 25. Qd2 {[%clk 0:01:06]}  Ra2 {[%clk 0:02:19]} 26. Ng4 {[%clk 0:01:06]}  Kh7 {[%clk 0:02:13]} 27. Rxa2 {[%clk 0:00:53]}  bxa2 {[%clk 0:02:13]} 28. Ra1 {[%clk 0:00:54]}  Qa8 {[%clk 0:02:10]} 29. Qc2+ {[%clk 0:00:48]}  Kg8 {[%clk 0:01:59]} 30. Qd2 {[%clk 0:00:46]}  Kh7 {[%clk 0:00:49]} 31. Qc2+ {[%clk 0:00:46]}  g6 {[%clk 0:00:49]} 32. Qd2 {[%clk 0:00:42]}  g5 {[%clk 0:00:50]} 33. Bxg5 {[%clk 0:00:24]}  hxg5 {[%clk 0:00:50]} 34. Qxg5 {[%clk 0:00:25]}  Rh8 {[%clk 0:00:48]} 35. Qe7 {[%clk 0:00:21]}  Nxe7 {[%clk 0:00:41]} 0-1


[Site "https://www.chess.com"]

[Event "Titled Tuesday Blitz August 08 Early 2023"]
[White "dr_tatiana"]
[Black "FoxOnTheRun97"]
[WhiteElo "2348"]
[BlackElo "2553"]
[Result "0-1"]
[Round "3"]
[TimeControl "180+1"]
[Date "2023.08.08"]
[WhiteClock "0:00:12"]
[BlackClock "0:00:39"]
[Board "172"]

1. e4 {[%clk 0:03:00]}  c6 {[%clk 0:02:59]} 2. d4 {[%clk 0:03:00]}  d5 {[%clk 0:02:59]} 3. f3 {[%clk 0:03:00]}  Qb6 {[%clk 0:02:58]} 4. Nc3 {[%clk 0:02:49]}  dxe4 {[%clk 0:02:57]} 5. fxe4 {[%clk 0:02:50]}  e5 {[%clk 0:02:58]} 6. Nf3 {[%clk 0:02:44]}  exd4 {[%clk 0:02:38]} 7. Qxd4 {[%clk 0:02:26]}  Qxd4 {[%clk 0:02:37]} 8. Nxd4 {[%clk 0:02:27]}  Bc5 {[%clk 0:02:29]} 9. Be3 {[%clk 0:02:26]}  Nd7 {[%clk 0:02:24]} 10. O-O-O {[%clk 0:02:25]}  Ngf6 {[%clk 0:02:21]} 11. h3 {[%clk 0:02:10]}  Bb6 {[%clk 0:02:18]} 12. g4 {[%clk 0:02:00]}  Ne5 {[%clk 0:02:10]} 13. Bg2 {[%clk 0:01:58]}  Be6 {[%clk 0:02:03]} 14. Rhe1 {[%clk 0:01:37]}  O-O-O {[%clk 0:01:58]} 15. Nf5 {[%clk 0:01:31]}  Bxe3+ {[%clk 0:01:56]} 16. Rxe3 {[%clk 0:01:27]}  Rxd1+ {[%clk 0:01:50]} 17. Kxd1 {[%clk 0:01:28]}  Nc4 {[%clk 0:01:49]} 18. Kc1 {[%clk 0:01:29]}  Nxe3 {[%clk 0:01:49]} 19. Nxe3 {[%clk 0:01:27]}  h5 {[%clk 0:01:37]} 20. g5 {[%clk 0:01:27]}  Nd7 {[%clk 0:01:36]} 21. h4 {[%clk 0:01:14]}  Ne5 {[%clk 0:01:34]} 22. Nf5 {[%clk 0:01:07]}  Bxf5 {[%clk 0:01:32]} 23. exf5 {[%clk 0:01:08]}  Ng4 {[%clk 0:01:24]} 24. Ne4 {[%clk 0:01:04]}  Kc7 {[%clk 0:01:23]} 25. Bf3 {[%clk 0:00:58]}  Re8 {[%clk 0:01:12]} 26. c3 {[%clk 0:00:39]}  Re5 {[%clk 0:01:11]} 27. f6 {[%clk 0:00:19]}  gxf6 {[%clk 0:01:05]} 28. gxf6 {[%clk 0:00:19]}  Rf5 {[%clk 0:01:04]} 29. Bxg4 {[%clk 0:00:17]}  hxg4 {[%clk 0:01:03]} 30. Kd2 {[%clk 0:00:16]}  Kd7 {[%clk 0:00:50]} 31. Ke3 {[%clk 0:00:16]}  Ke6 {[%clk 0:00:46]} 32. b4 {[%clk 0:00:16]}  Ke5 {[%clk 0:00:40]} 33. a4 {[%clk 0:00:12]}  Rf3+ {[%clk 0:00:39]} 0-1


[Site "https://www.chess.com"]

[Event "Titled Tuesday Blitz August 08 Early 2023"]
[White "Sala, Giulia"]
[Black "Mendez Fortes, Eduardo Jesus"]
[WhiteFideId "2840451"]
[BlackFideId "3502376"]
[WhiteElo "2322"]
[BlackElo "2544"]
[Result "0-1"]
[Round "3"]
[TimeControl "180+1"]
[Date "2023.08.08"]
[WhiteClock "0:00:54"]
[BlackClock "0:01:19"]
[Board "176"]

1. d4 {[%clk 0:03:00]}  Nf6 {[%clk 0:02:57]} 2. Bf4 {[%clk 0:03:01]}  d5 {[%clk 0:02:57]} 3. e3 {[%clk 0:03:00]}  c5 {[%clk 0:02:55]} 4. dxc5 {[%clk 0:03:00]}  Nc6 {[%clk 0:02:53]} 5. Bb5 {[%clk 0:02:59]}  e6 {[%clk 0:02:51]} 6. b4 {[%clk 0:02:57]}  Bd7 {[%clk 0:02:49]} 7. c3 {[%clk 0:02:49]}  a5 {[%clk 0:02:49]} 8. Qb3 {[%clk 0:02:47]}  b6 {[%clk 0:02:46]} 9. Bxc6 {[%clk 0:02:44]}  Bxc6 {[%clk 0:02:40]} 10. b5 {[%clk 0:02:44]}  Bd7 {[%clk 0:02:38]} 11. c6 {[%clk 0:02:45]}  Bc8 {[%clk 0:02:37]} 12. a4 {[%clk 0:02:40]}  Bc5 {[%clk 0:02:36]} 13. Nf3 {[%clk 0:02:40]}  O-O {[%clk 0:02:35]} 14. O-O {[%clk 0:02:41]}  Ne4 {[%clk 0:02:35]} 15. Nbd2 {[%clk 0:02:40]}  Nxd2 {[%clk 0:02:30]} 16. Nxd2 {[%clk 0:02:41]}  f6 {[%clk 0:02:30]} 17. e4 {[%clk 0:02:38]}  Kh8 {[%clk 0:02:21]} 18. Rae1 {[%clk 0:02:30]}  e5 {[%clk 0:02:16]} 19. Be3 {[%clk 0:02:26]}  d4 {[%clk 0:02:13]} 20. cxd4 {[%clk 0:02:25]}  exd4 {[%clk 0:02:14]} 21. Bf4 {[%clk 0:02:25]}  Re8 {[%clk 0:02:14]} 22. Qf3 {[%clk 0:02:21]}  Be6 {[%clk 0:02:12]} 23. e5 {[%clk 0:02:21]}  f5 {[%clk 0:02:09]} 24. h4 {[%clk 0:02:19]}  Qe7 {[%clk 0:02:05]} 25. Bg5 {[%clk 0:02:18]}  Qf7 {[%clk 0:02:05]} 26. Rd1 {[%clk 0:02:16]}  Bd5 {[%clk 0:02:02]} 27. Qf4 {[%clk 0:02:14]}  h6 {[%clk 0:01:59]} 28. Bxh6 {[%clk 0:02:06]}  gxh6 {[%clk 0:02:00]} 29. Qxh6+ {[%clk 0:02:06]}  Kg8 {[%clk 0:01:59]} 30. Rfe1 {[%clk 0:02:05]}  Re6 {[%clk 0:01:56]} 31. Qf4 {[%clk 0:01:58]}  Rg6 {[%clk 0:01:55]} 32. Nf3 {[%clk 0:01:57]}  Rg4 {[%clk 0:01:51]} 33. e6 {[%clk 0:01:28]}  Qg6 {[%clk 0:01:22]} 34. Ng5 {[%clk 0:00:54]}  Rxf4 {[%clk 0:01:19]} 0-1


[Site "https://www.chess.com"]

[Event "Titled Tuesday Blitz August 08 Early 2023"]
[White "Kuzmin, Roman"]
[Black "amanjazu"]
[WhiteFideId "44134932"]
[WhiteElo "2543"]
[BlackElo "2320"]
[Result "0-1"]
[Round "3"]
[TimeControl "180+1"]
[Date "2023.08.08"]
[WhiteClock "0:00:00"]
[BlackClock "0:00:08"]
[Board "177"]

1. e4 {[%clk 0:03:00]}  d5 {[%clk 0:02:58]} 2. exd5 {[%clk 0:03:00]}  Nf6 {[%clk 0:02:58]} 3. Bb5+ {[%clk 0:02:59]}  Bd7 {[%clk 0:02:56]} 4. Be2 {[%clk 0:02:58]}  Nxd5 {[%clk 0:02:55]} 5. d4 {[%clk 0:02:58]}  e6 {[%clk 0:02:53]} 6. c4 {[%clk 0:02:57]}  Nf6 {[%clk 0:02:53]} 7. Nc3 {[%clk 0:02:58]}  c6 {[%clk 0:02:52]} 8. Nf3 {[%clk 0:02:58]}  Bd6 {[%clk 0:02:52]} 9. O-O {[%clk 0:02:55]}  O-O {[%clk 0:02:52]} 10. Ne5 {[%clk 0:02:56]}  Qc7 {[%clk 0:02:45]} 11. Bf4 {[%clk 0:02:18]}  c5 {[%clk 0:02:40]} 12. Nb5 {[%clk 0:02:18]}  Bxb5 {[%clk 0:02:39]} 13. cxb5 {[%clk 0:02:19]}  Nd5 {[%clk 0:02:26]} 14. Bg3 {[%clk 0:02:17]}  f5 {[%clk 0:01:30]} 15. Bf3 {[%clk 0:01:15]}  f4 {[%clk 0:00:52]} 16. Bh4 {[%clk 0:01:13]}  Ne7 {[%clk 0:00:43]} 17. Bxe7 {[%clk 0:01:02]}  Qxe7 {[%clk 0:00:39]} 18. Nc4 {[%clk 0:00:50]}  Nd7 {[%clk 0:00:20]} 19. Re1 {[%clk 0:00:37]}  Kh8 {[%clk 0:00:15]} 20. dxc5 {[%clk 0:00:17]}  Bxc5 {[%clk 0:00:15]} 21. Qe2 {[%clk 0:00:16]}  e5 {[%clk 0:00:14]} 22. Bxb7 {[%clk 0:00:13]}  Rab8 {[%clk 0:00:13]} 23. Bc6 {[%clk 0:00:10]}  Rf5 {[%clk 0:00:12]} 24. Qf3 {[%clk 0:00:09]}  Nb6 {[%clk 0:00:09]} 25. Nxb6 {[%clk 0:00:04]}  axb6 {[%clk 0:00:10]} 26. Rad1 {[%clk 0:00:03]}  Rd8 {[%clk 0:00:09]} 27. Qe4 {[%clk 0:00:04]}  Rxd1 {[%clk 0:00:09]} 28. Rxd1 {[%clk 0:00:05]}  Rf8 {[%clk 0:00:09]} 29. Rd7 {[%clk 0:00:05]}  Qh4 {[%clk 0:00:09]} 30. Rd2 {[%clk 0:00:01]}  Rd8 {[%clk 0:00:09]} 31. Qe2 {[%clk 0:00:01]}  Bxf2+ {[%clk 0:00:08]} 32. Qxf2 {[%clk 0:00:00]}  Qf6 {[%clk 0:00:08]} 0-1


[Site "https://www.chess.com"]

[Event "Titled Tuesday Blitz August 08 Early 2023"]
[White "Janaszak, Dawid"]
[Black "Konenkin, Dmitry"]
[WhiteFideId "1119206"]
[BlackFideId "4185781"]
[WhiteElo "2531"]
[BlackElo "2303"]
[Result "1-0"]
[Round "3"]
[TimeControl "180+1"]
[Date "2023.08.08"]
[WhiteClock "0:00:11"]
[BlackClock "0:00:00"]
[Board "179"]

1. e4 {[%clk 0:03:00]}  d6 {[%clk 0:02:59]} 2. Nc3 {[%clk 0:02:59]}  Nf6 {[%clk 0:02:59]} 3. d4 {[%clk 0:02:58]}  e5 {[%clk 0:02:59]} 4. Nge2 {[%clk 0:02:59]}  Be7 {[%clk 0:02:56]} 5. g3 {[%clk 0:02:59]}  h5 {[%clk 0:02:54]} 6. h3 {[%clk 0:02:56]}  Nc6 {[%clk 0:02:48]} 7. Bg2 {[%clk 0:02:53]}  h4 {[%clk 0:02:47]} 8. g4 {[%clk 0:02:53]}  exd4 {[%clk 0:02:37]} 9. Nxd4 {[%clk 0:02:54]}  Nxd4 {[%clk 0:02:37]} 10. Qxd4 {[%clk 0:02:54]}  Be6 {[%clk 0:02:37]} 11. Bf4 {[%clk 0:02:50]}  c5 {[%clk 0:02:28]} 12. Qd2 {[%clk 0:02:48]}  Qb6 {[%clk 0:02:27]} 13. O-O-O {[%clk 0:02:39]}  O-O-O {[%clk 0:02:27]} 14. Rhe1 {[%clk 0:02:32]}  Nd7 {[%clk 0:01:58]} 15. Nd5 {[%clk 0:02:20]}  Bxd5 {[%clk 0:01:53]} 16. Qxd5 {[%clk 0:02:21]}  Bf6 {[%clk 0:01:42]} 17. c3 {[%clk 0:02:21]}  Ne5 {[%clk 0:01:30]} 18. Be3 {[%clk 0:02:06]}  Qc6 {[%clk 0:01:15]} 19. f4 {[%clk 0:01:51]}  Qxd5 {[%clk 0:01:14]} 20. Rxd5 {[%clk 0:01:52]}  Nc4 {[%clk 0:01:15]} 21. Bf2 {[%clk 0:01:49]}  Rhe8 {[%clk 0:01:14]} 22. g5 {[%clk 0:01:35]}  Be7 {[%clk 0:01:12]} 23. Bxh4 {[%clk 0:01:30]}  Nb6 {[%clk 0:00:51]} 24. Rd2 {[%clk 0:01:29]}  Rh8 {[%clk 0:00:45]} 25. Bg3 {[%clk 0:01:28]}  f6 {[%clk 0:00:46]} 26. h4 {[%clk 0:01:23]}  Nc4 {[%clk 0:00:40]} 27. Rf2 {[%clk 0:00:49]}  fxg5 {[%clk 0:00:37]} 28. fxg5 {[%clk 0:00:49]}  Rhf8 {[%clk 0:00:33]} 29. Ref1 {[%clk 0:00:35]}  Ne3 {[%clk 0:00:33]} 30. Rxf8 {[%clk 0:00:33]}  Bxf8 {[%clk 0:00:34]} 31. Bh3+ {[%clk 0:00:30]}  Kc7 {[%clk 0:00:29]} 32. Rf7+ {[%clk 0:00:30]}  Kc6 {[%clk 0:00:30]} 33. b3 {[%clk 0:00:26]}  d5 {[%clk 0:00:22]} 34. Kd2 {[%clk 0:00:26]}  d4 {[%clk 0:00:19]} 35. e5 {[%clk 0:00:20]}  Nd5 {[%clk 0:00:16]} 36. c4 {[%clk 0:00:17]}  Ne3 {[%clk 0:00:07]} 37. e6 {[%clk 0:00:16]}  Re8 {[%clk 0:00:07]} 38. h5 {[%clk 0:00:15]}  b5 {[%clk 0:00:04]} 39. Kd3 {[%clk 0:00:15]}  bxc4+ {[%clk 0:00:05]} 40. bxc4 {[%clk 0:00:16]}  Rd8 {[%clk 0:00:03]} 41. e7 {[%clk 0:00:14]}  Bxe7 {[%clk 0:00:04]} 42. Rxe7 {[%clk 0:00:15]}  Rf8 {[%clk 0:00:05]} 43. h6 {[%clk 0:00:11]}  gxh6 {[%clk 0:00:04]} 44. gxh6 {[%clk 0:00:12]}  Rf3 {[%clk 0:00:04]} 45. h7 {[%clk 0:00:13]}  Nf5+ {[%clk 0:00:02]} 46. Ke2 {[%clk 0:00:11]}  Rxg3 {[%clk 0:00:00]} 47. Bxf5 {[%clk 0:00:11]} 1-0


[Site "https://www.chess.com"]

[Event "Titled Tuesday Blitz August 08 Early 2023"]
[White "Baghdasaryan, Vahe"]
[Black "rionelG"]
[WhiteFideId "13303139"]
[WhiteElo "2529"]
[BlackElo "2300"]
[Result "1-0"]
[Round "3"]
[TimeControl "180+1"]
[Date "2023.08.08"]
[WhiteClock "0:00:10"]
[BlackClock "0:00:13"]
[Board "181"]

1. e4 {[%clk 0:02:58]}  c5 {[%clk 0:03:00]} 2. c3 {[%clk 0:02:57]}  d5 {[%clk 0:02:59]} 3. exd5 {[%clk 0:02:58]}  Qxd5 {[%clk 0:03:00]} 4. d4 {[%clk 0:02:58]}  Nc6 {[%clk 0:03:00]} 5. Nf3 {[%clk 0:02:58]}  Nf6 {[%clk 0:03:01]} 6. Be3 {[%clk 0:02:30]}  cxd4 {[%clk 0:02:59]} 7. cxd4 {[%clk 0:02:28]}  e6 {[%clk 0:02:57]} 8. Nc3 {[%clk 0:02:27]}  Qd6 {[%clk 0:02:57]} 9. Bd3 {[%clk 0:02:24]}  Be7 {[%clk 0:02:52]} 10. a3 {[%clk 0:02:21]}  O-O {[%clk 0:02:43]} 11. h3 {[%clk 0:02:18]}  b6 {[%clk 0:02:43]} 12. Rc1 {[%clk 0:02:14]}  Bb7 {[%clk 0:02:42]} 13. Ne4 {[%clk 0:02:07]}  Qd8 {[%clk 0:02:15]} 14. Nxf6+ {[%clk 0:02:05]}  Bxf6 {[%clk 0:02:14]} 15. Be4 {[%clk 0:02:00]}  Rc8 {[%clk 0:02:12]} 16. O-O {[%clk 0:01:48]}  Qe7 {[%clk 0:02:07]} 17. Qa4 {[%clk 0:01:32]}  a6 {[%clk 0:00:48]} 18. Bxc6 {[%clk 0:00:23]}  b5 {[%clk 0:00:43]} 19. Bxb5 {[%clk 0:00:23]}  axb5 {[%clk 0:00:42]} 20. Qxb5 {[%clk 0:00:22]}  Bxf3 {[%clk 0:00:43]} 21. gxf3 {[%clk 0:00:20]}  h6 {[%clk 0:00:41]} 22. Qa6 {[%clk 0:00:17]}  Qd7 {[%clk 0:00:36]} 23. Rxc8 {[%clk 0:00:14]}  Rxc8 {[%clk 0:00:35]} 24. Rd1 {[%clk 0:00:14]}  Rc2 {[%clk 0:00:30]} 25. b4 {[%clk 0:00:12]}  Qd5 {[%clk 0:00:30]} 26. Qd3 {[%clk 0:00:12]}  Rb2 {[%clk 0:00:25]} 27. Qe4 {[%clk 0:00:12]}  Qb3 {[%clk 0:00:21]} 28. d5 {[%clk 0:00:11]}  exd5 {[%clk 0:00:18]} 29. Rxd5 {[%clk 0:00:12]}  g6 {[%clk 0:00:15]} 30. Rd6 {[%clk 0:00:10]}  Kg7 {[%clk 0:00:15]} 31. Rxf6 {[%clk 0:00:08]}  Kxf6 {[%clk 0:00:15]} 32. Bd4+ {[%clk 0:00:09]}  Kg5 {[%clk 0:00:14]} 33. h4+ {[%clk 0:00:09]}  Kh5 {[%clk 0:00:13]} 34. Qg4# {[%clk 0:00:10]} 1-0


[Site "https://www.chess.com"]